Cogmind - Beta 10.1 @@@ ROGUE MODE // 2020.10.20 @ 12:02:53 Player: Trollpotato Result: Destroyed by G-47 Trooper with Particle Gun Performance ------------- Evolutions (0) 0 Regions Visited (1) 200 Robots Destroyed (16) 80 Value Destroyed (397) 397 Prototype IDs (0) 0 Alien Tech Used (0) 0 Bonus (0) 0 TOTAL SCORE: 677 Bonus ------- None Cogmind --------- Core Integrity 0/250 Matter 300/300 Energy 100/100 System Corruption 0% Temperature Cool (9) Movement Core (600) Ox11 Location -10/Materials Parts ------- > --- POWER (1) -------- (None) > --- PROPULSION (2) --- (None) > --- UTILITY (2) ------ Small Storage Unit High-capacity Storage Unit > --- WEAPON (2) ------- (None) > --- INVENTORY (14) --- Ion Engine Aluminum Leg Aluminum Leg Sensor Array Signal Interpreter Propulsion Shielding Hacking Suite Peak State ------------ > --- POWER ------------ Ion Engine > --- PROPULSION ------- Aluminum Leg Aluminum Leg > --- UTILITY ---------- Small Storage Unit High-capacity Storage Unit > --- WEAPON ----------- Small Laser Small Laser > --- INVENTORY -------- Ion Engine Ion Engine Aluminum Leg Aluminum Leg Sensor Array Signal Interpreter Propulsion Shielding Hacking Suite [Rating: 8] Favorites ----------- Power Ion Engine Engine Ion Engine Propulsion Aluminum Leg Leg Aluminum Leg Wheel Compact Wheel Utility Small Storage Unit Device Sensor Array Storage Small Storage Unit Weapon Assault Rifle Energy Gun Small Laser Ballistic Gun Assault Rifle Build | -11 -10 ------- Run | Scr Mat Slots Evolved . | . . Power . | . . Propulsion . | . . Utility . | . . Weapon . | . . Parts Attached 19 | 6 13 Power 2 | 1 1 Engine 2 | 1 1 Core . | . . Reactor . | . . Propulsion 7 | 2 5 Treads . | . . Leg 5 | . 5 Wheel 2 | 2 . Hover . | . . Flight . | . . Utility 4 | 1 3 Device 1 | . 1 Storage 3 | 1 2 Processor . | . . Hackware . | . . Protection . | . . Artifact . | . . Weapon 6 | 2 4 Energy Gun 5 | 1 4 Energy Cannon . | . . Ballistic Gun 1 | 1 . Ballistic Cannon . | . . Launcher . | . . Special Weapon . | . . Impact Weapon . | . . Slashing Weapon . | . . Piercing Weapon . | . . Special Melee Weapon . | . . Unidentified Prototypes . | . . Parts Lost 10 | . 10 Power 1 | . 1 Propulsion 3 | . 3 Utility . | . . Weapon 6 | . 6 Highest Loss Streak 4 | . 4 Average Slot Usage (%) 93 | . 93 Engine 13 | . 13 Leg 15 | . 15 Wheel 11 | . 11 Device 7 | . 7 Storage 19 | . 19 Energy Gun 14 | . 14 Ballistic Gun 10 | . 10 Naked Turns . | . . Heaviest Build 44 | 13 44 Greatest Support 26 | 26 26 Greatest Overweight (x) 11 | . 11 Average Overweight (x) . | . . Largest Inventory Capacity 14 | 6 14 Average Capacity 8 | 5 9 Most Carried 8 | 6 8 Average Carried 6 | 4 6 Final Capacity 14 | 6 14 Final Carried 7 | 6 7 Class Distribution -------------------- 89% | Mutant 10% | Scavenger-Mutant Dominant Class ---------------- Mutant | -10/Materials Resources | -11 -10 ----------- Run | Scr Mat Matter Collected 548 | 256 292 Remotely . | . . Salvage Created 635 | 56 579 Parts 42 | 1 41 Haulers Intercepted 1 | . 1 Recyclers Shooed 4 | . 4 Parts Field Recycled . | . . Retrieved Matter . | . . Parts Self-Destructed . | . . Prevented . | . . Kills | -11 -10 ------- Run | Scr Mat Combat Hostiles Destroyed 9 | . 9 Guns 9 | . 9 Classes Destroyed 5 | 1 4 Hauler 1 | . 1 Recycler 2 | 1 1 Operator 1 | . 1 Watcher 3 | . 3 Grunt 9 | . 9 Best Kill Streak 5 | 1 5 Combat Bots Only 5 | . 5 Max Kills in Single Turn 1 | 1 1 Gunslinging . | . . Exploded . | . . Melee . | . . Uniques/NPCs Destroyed . | . . Combat | -11 -10 -------- Run | Scr Mat Damage Taken 1138 | . 1138 Core 253 | . 253 Absorbed by Shields . | . . Core Remaining (%) 100 | 100 . Volleys Fired 71 | 4 67 Largest 2 | 2 2 Hottest 80 | 60 80 Shots Fired 131 | 8 123 Gun 131 | 8 123 Cannon . | . . Launcher . | . . Special . | . . Kinetic 61 | 4 57 Thermal 31 | . 31 Explosive . | . . Electromagnetic 39 | 4 35 Robot Hit Streak 19 | 4 19 Robot Miss Streak 3 | 2 3 Penetration Max . | . . Secondary Targets 2 | . 2 Max Gunslinging Chain 1 | . 1 Shots Hit Robots 96 | 6 90 Core Hits 30 | 2 28 Critical Hits . | . . Critical Kills . | . . Critical Parts Destroyed . | . . Melee Attacks . | . . Impact . | . . Slashing . | . . Piercing . | . . Sneak Attacks . | . . Combat Hostiles . | . . Follow-up Attacks . | . . Damage Inflicted 1281 | 80 1201 Guns 1198 | 80 1118 Cannons . | . . Explosions 83 | . 83 Melee . | . . Ramming . | . . Kinetic 524 | 39 485 Thermal 350 | . 350 Explosive . | . . Electromagnetic 407 | 41 366 Impact . | . . Slashing . | . . Piercing . | . . Highest Corruption . | . . Average Corruption . | . . Corruption Purged . | . . Overload Shots . | . . Overflow Damage 4 | . 4 Projectiles . | . . Explosions 4 | . 4 Melee . | . . Knockbacks . | . . Impact . | . . Kinetic . | . . Secondary . | . . Self-Inflicted Damage 32 | . 32 Shots 1 | . 1 Rammed . | . . Targets Rammed . | . . Kicked . | . . Crushed . | . . Highest Temperature 147 | . 147 Average Temperature 47 | . 47 Received Heat Transfer 615 | . 615 Siege Activations . | . . Robots Corrupted 1 | . 1 Combat Hostiles . | . . Parts Fried . | . . Impact Corruptions . | . . Robots Melted . | . . Combat Hostiles . | . . Parts Melted . | . . Heat Transferred 822 | . 822 Parts Sabotaged . | . . Parts Stolen . | . . Parts Stripped . | . . Power Chain Reactions 2 | . 2 Missiles Intercepted . | . . Alert | -11 -10 ------- Run | Scr Mat Peak Influence 254 | 5 254 Initial 3 | . 3 Average 98 | 1 108 Maximum Alert Level 1 | . 1 Low Security (%) 83 | 100 81 Level 1 16 | . 18 Level 2 . | . . Level 3 . | . . Level 4 . | . . Level 5 . | . . High Security . | . . Max Security . | . . Squads Dispatched 3 | . 3 Investigation 1 | . 1 Extermination . | . . Reinforcement 2 | . 2 Assault . | . . Garrison . | . . Intercept . | . . Construction Impeded . | . . Haulers Reinforced . | . . Stealth | -11 -10 --------- Run | Scr Mat Distress Signals 1 | . 1 Communications Jammed . | . . Distress Signals . | . . Times Spotted 25 | . 25 Peak Tracking Total 4 | . 4 Tactical Retreats 3 | . 3 Traps | -11 -10 ------- Run | Scr Mat Traps Triggered 1 | . 1 Indirectly . | . . Trap Hack Attempts . | . . Triggered . | . . Disarmed . | . . Reprogrammed . | . . Reused . | . . Traps Extracted . | . . Installed . | . . Triggered . | . . Machines | -11 -10 ---------- Run | Scr Mat Machines Disabled . | . . Max in Single Turn . | . . Machines Sabotaged . | . . Garrisons Compromised . | . . Overloaded Fab Kills . | . . Fab Network Shutdowns . | . . Hacking | -11 -10 --------- Run | Scr Mat Machines Accessed 1 | . 1 Terminals 1 | . 1 Fabricators . | . . Repair Stations . | . . Recycling Units . | . . Scanalyzers . | . . Garrison Access . | . . Total Hacks 2 | . 2 Successful 1 | . 1 Failed 1 | . 1 Catastrophic . | . . Database Lockouts . | . . Manual 2 | . 2 Terminals 2 | . 2 Fabricators . | . . Repair Stations . | . . Recycling Units . | . . Scanalyzers . | . . Garrison Access . | . . Terminal Hacks . | . . Fabricator Hacks . | . . Repair Station Hacks . | . . Recycling Unit Hacks . | . . Scanalyzer . | . . Garrison Access Hacks . | . . Unauthorized Hacks 1 | . 1 Terminals 1 | . 1 Botnet 1 | . 1 Fabricators . | . . Repair Stations . | . . Recycling Units . | . . Scanalyzers . | . . Garrison Access . | . . Data Cores Recovered . | . . Used . | . . Hacking Detections 1 | . 1 Full Trace Events . | . . Feedback Events . | . . Feedback Blocked . | . . Robot Schematics Acquired . | . . Robots Built . | . . Matter . | . . Time . | . . Total Robot Build Rating . | . . Part Schematics Acquired . | . . Parts Built . | . . Matter . | . . Time . | . . Total Part Build Rating . | . . Parts Repaired . | . . Time . | . . Parts Recycled . | . . Recycled Matter . | . . Retrieved Matter . | . . Retrieved Components . | . . Parts Scanalyzed . | . . Part Schematics Acquired . | . . Parts Damaged . | . . Bothacking | -11 -10 ------------ Run | Scr Mat Used RIF Installer . | . . Robots Hacked . | . . Non-combat . | . . Combat . | . . Robot Hacks Applied . | . . Relay Couplers Released . | . . Robots Rewired . | . . Allies Hacked . | . . Hacks Repelled . | . . Allies | -11 -10 -------- Run | Scr Mat Total Allies . | . . Largest Group . | . . Highest-Rated Group . | . . Highest-Rated Ally . | . . Total Orders . | . . Ally Attacks . | . . Total Damage . | . . Kills . | . . Allies Corrupted . | . . Allies Melted . | . . Intel | -11 -10 ------- Run | Scr Mat Robot Analysis Total . | . . Derelict Logs Recovered . | . . Drone Launches . | . . Drone Recoveries . | . . Exploration | -11 -10 ------------- Run | Scr Mat Turns Passed 807 | 82 725 Spaces Moved 425 | 62 363 Core 6 | 2 4 Treads . | . . Legs 172 | . 172 Wheels 247 | 60 187 Hover . | . . Flight . | . . Fastest Speed 50 | 50 90 Average Speed 120 | 89 126 Slowest Speed 600 | 100 600 Overloaded Moves . | . . Propulsion Burnouts . | . . Robots Hopped . | . . Cave-ins Triggered . | . . Exploration Rate (%) 26 | 5 48 Regions Visited 1 Branch Regions . Pre-discovered Areas . | . . Known Exits Taken . | . . Unknown Exits Taken 1 | 1 . Scrap Searched . | . . Spaces Dug . | . . Terrain Destroyed 9 | . 9 Melee . | . . Projectile . | . . AOE 9 | . 9 Terrain Rammed . | . . Walls Destroyed . | . . Machines Disabled . | . . Actions | -11 -10 --------- Run | Scr Mat Total 589 | 77 512 Wait 51 | . 51 Move 424 | 61 363 Hop . | . . Pick Up 12 | 6 6 Fast Attach 14 | 6 8 Attach 1 | . 1 Detach 1 | . 1 Swap 4 | . 4 Drop 11 | . 11 Fire 71 | 4 67 Melee . | . . Ram . | . . Kick . | . . Crush . | . . Escape Stasis . | . . Rewire . | . . Trap . | . . Miscellaneous . | . . Route ------- -11/Scrapyard -10/Materials (discovered 3 exits: [*Mat x2] / [*Min]) History --------- Turn | Location | Event 16 | -11/Scrapyard | Discovered new exit (range 15) 83 | -11/Scrapyard | Entered Materials 246 | -10/Materials | Discovered new exit (range 5) 317 | -10/Materials | Build established: Mutant 510 | -10/Materials | Discovered new exit (range 10) 566 | -10/Materials | Core integrity fell below 50% 705 | -10/Materials | Lost 3 parts (1n2w) 753 | -10/Materials | Discovered new exit (range 7) 803 | -10/Materials | Core integrity fell below 20% 808 | -10/Materials | Destroyed by G-47 Trooper with Particle Gun Last Messages --------------- 00716_ Acquired Sensor Array. 00717_ Dropped Sensor Array. 00751_ Sml. Laser destroyed. 00753_ EXIT=FOUND 00762_ U-05 Engineer builds a Door. 00770_ K-01 Serf collects debris. 00770_ Ion Engine destroyed. 00776_ K-01 Serf collects debris. 00778_ O-16 Technician: "IFF HANDSHAKE FAILED. SECURING TERMINAL." 00780_ K-01 Serf cleans the Terminal. 00781_ O-16 Technician uses terminal to summon reinforcements. 00781_ ALERT: Hostiles spotted, dispatching reinforcements to Terminal M003. 00781_ O-16 Technician locks terminal. 00783_ K-01 Serf cleans the Terminal. 00785_ Aluminum Leg destroyed. 00786_ K-01 Serf cleans the Terminal. 00787_ Aluminum Leg destroyed. 00791_ K-01 Serf collects debris. 00802_ K-01 Serf cleans the Processing Tank. Map ----- +----------------------------------------------------+ | | | | | | | | | | | | | | | | | | | | | | | | | | | | | | | | | | | | | | | | | | | ?????????????????????????????????????????????????? | | ?????????????????????????????????????????????????? | | ?????????????????????????????????????????????????? | | ?????????????????????##########??????????????????? | | ?????????????????????# @ gg #??????????????????? | | ?????????????????????# """""g #??????????????????? | | ?????????????????????# ""T"" #??????????????????? | | ?????????????????????# o g #??????????????????? | | ?????????????????????# #??????????????????? | | ?????????????????????# """"" #####??????????????? | | ?????????????????????# """"" # #??????????????? | | ?????????????????????# """"" # < #??????????????? | | ?????????????????????# # #??????????????? | | ?????????????????????####/##### #??????????????? | | ???????????????"" ###### #??????????????? | | ????????????????" / #??????????????? | | ???????????????"" ###### #??????????????? | | ???????????????????????# ########??????????????? | | ???????????????????????# #?????????????????????? | | ???????????????######### #?????????????????????? | | ???????????????# + #?????????????????????? | | ???????????????# """ # #?????????????????????? | | ???????????????#^ """ # #?????????????????????? | | ???????????????# """ # #?????????????????????? | | ???????????????# # #?????????????????????? | | ???????????????######### #?????????????????????? | | ????#######????????????# ##########????????????? | | ????# ############## ????????? | | ????# = * ????????? | +----------------------------------------------------+ Best States ------------- Heat Dissipation 25 Energy Generation 10 Energy Capacity 250 Matter Stores 300 Matter Capacity 300 Sight Range 16 Robot Scan Range 10 Terrain Scan Density 10 Evasion (%) 42 Item Schematics ----------------- None Robot Schematics ------------------ None Fabricated ------------ Nothing Alien Tech Used ----------------- None Achievements -------------- None Challenges ------------ None Game ------ Seed WarpSubatomicMicrothruster Manual? 0 Play Time 00:14:39 Cumulative 22.4 hours Start 2020.10.20 @ 11:50:00 End 2020.10.20 @ 12:02:53 Sessions 1 Manual Loads 0 Difficulty Rogue Special Mode None Game No. 16 Rogue 16 Adventurer 0 Explorer 0 Win Type - Total 0 Types 0/0/0/0/0/0/0/0/0 Lore% 7 Gallery% 18 Achievement% 17 Wizard Run 0 Options --------- ASCII 0 Keyboard 0 Movement Numpad Keybinds 0 Fullscreen 1 Font 18/SmallcapsGlow Map View 76x50 Tactical HUD 1 Map Filters NONE Filters NONE Steam 1 RUN: e70ba8ea-6a9e-4b6f-a7ef-5baf0f24968d